bitfinex-derivatives/quotes_SOLF0:USTF0_20251210
["timestamp","ask_amount","ask_price","bid_price","bid_amount"]
[1765355886546,6.4833,138.82,138.81,3.02]
[1765355886943,6.4838,138.81,138.8,3.17805483]
[1765355887249,8.18768441,138.81,138.8,0.04805483]
[1765355888942,1.70388441,138.81,138.76,3.13]
[1765355889251,122.4986,138.83,138.76,3.13]
[1765355889252,1.70388441,138.79,138.76,3.13]
[1765355889950,1.75572179,138.79,138.76,3.17698642]
[1765355892055,8.24042179,138.79,138.76,3.17698642]
[1765355892353,1.70388441,138.77,138.76,0.04698642]
[1765355894856,6.4861,138.76,138.72,3.07]
[1765355895057,1.70388441,138.74,138.72,3.07]
[1765355895860,1.7587938,138.74,138.72,3.11889204]
[1765355898645,0.05490939,138.74,138.72,3.11889204]
[1765355898956,1.70388441,138.76,138.72,3.11889204]
[1765355899462,1.70388441,138.78,138.73,3.05]
[1765355899853,0.04566824,138.77,138.75,3.05]
[1765355904965,1.70388441,138.76,138.75,3.05]
[1765355905161,1.70388441,138.76,138.74,3.10140273]
[1765355910472,0.04566824,138.77,138.74,3.10140273]
[1765355910676,0.04566824,138.77,138.75,3.05]
[1765355911163,1.70388441,138.8,138.78,3.05]
[1765355911363,8.18758441,138.82,138.78,3.05]
[1765355911560,6.4837,138.82,138.78,3.05]
[1765355911765,1.70388441,138.82,138.78,3.05]
[1765355912066,0.05085349,138.81,138.8,3.05]
[1765355912467,7.97485349,138.81,138.79,0.04790555]
[1765355912678,1.70388441,138.8,138.79,0.04790555]
[1765355916580,1.70388441,138.8,138.79,3.09790555]
[1765355920365,0.05085349,138.81,138.79,3.09790555]
[1765355924476,0.00085349,138.81,138.79,3.09790555]
[1765355924989,0.00085349,138.81,138.79,9.58250555]
[1765355925176,0.00085349,138.81,138.79,3.09790555]
[1765355929375,6.48465349,138.81,138.79,3.09790555]
[1765355933792,0.00085349,138.81,138.79,3.09790555]
[1765355935885,0.00085349,138.81,138.8,3.22]
[1765355938090,0.00085349,138.81,138.8,6.4842]
[1765355941689,0.00085349,138.81,138.79,0.04790555]
[1765355942089,0.00085349,138.81,138.8,3.22]
[1765355944291,0.00085349,138.81,138.79,0.04790555]
[1765355944292,1.7047379,138.81,138.79,0.04790555]
[1765355944492,0.00085349,138.81,138.79,3.26790555]
[1765355946898,0.00085349,138.81,138.79,0.04790555]
[1765355947096,0.00085349,138.81,138.79,3.26790555]
[1765355948597,6.48465349,138.81,138.79,3.26790555]
[1765355952695,6.48465349,138.81,138.79,3.31790555]
[1765355954700,0.00085349,138.81,138.79,3.31790555]
[1765355956189,0.00085349,138.81,138.8,3.25]
[1765355960208,0.00085349,138.81,138.8,6.4842]
[1765355962914,6.4819,138.85,138.8,15.39452958]
[1765355963107,6.4819,138.85,138.8,6.4842]
[1765355963297,6.4819,138.85,138.81,3.25]
[1765355963805,0.04837815,138.84,138.81,3.25]
[1765355965205,0.04837815,138.84,138.82,3.25]
[1765355966402,6.53077815,138.84,138.81,3.25]
[1765355970117,6.53077815,138.84,138.81,9.7336]
[1765355970118,0.04837815,138.84,138.81,9.7336]
[1765355970415,0.04837815,138.84,138.82,3.25]
[1765355973109,0.04837815,138.84,138.83,3.25]
[1765355974818,0.04837815,138.84,138.82,0.05002123]
[1765355976633,6.53077815,138.84,138.82,0.05002123]
[1765355981518,6.4828,138.83,138.82,0.05002123]
[1765355990529,6.53077815,138.84,138.82,3.13002123]
[1765355993230,0.04837815,138.84,138.82,3.13002123]
[1765355995628,0.04837815,138.84,138.83,3.08]
[1765355996434,2.6637518,138.88,138.84,3.08]
[1765355997340,0.05254712,138.87,138.84,3.08]
[1765356000423,6.53354712,138.87,138.84,3.08]
[1765356001031,6.4827,138.84,138.82,0.05002123]
[1765356001234,0.05254712,138.87,138.82,3.13002123]
[1765356002035,6.4819,138.85,138.82,3.13002123]
[1765356002732,6.4824,138.84,138.82,3.13002123]
[1765356003534,6.4824,138.84,138.82,0.05002123]
[1765356004629,28.1024,138.84,138.82,0.05002123]
[1765356004826,28.1024,138.84,138.76,13.42418006]
[1765356004827,21.62,138.82,138.76,8.91032958]
[1765356005023,1.70534218,138.79,138.76,3.08]
[1765356006038,1.76076673,138.79,138.76,3.12803192]
[1765356009039,8.24556673,138.79,138.76,3.12803192]
[1765356009642,1.76076673,138.79,138.76,3.12803192]
[1765356010035,0.05542455,138.79,138.76,3.12803192]
[1765356011431,0.05542455,138.79,138.76,9.61403192]
[1765356011742,0.05542455,138.79,138.77,3.1]
[1765356016439,0.05542455,138.79,138.77,9.5855]
[1765356016641,8.18804218,138.84,138.77,3.1]
[1765356017140,8.18804218,138.84,138.78,6.4847]
[1765356017347,8.18804218,138.84,138.79,3.02]
[1765356017348,6.4829,138.83,138.79,3.02]
[1765356017737,0.04648565,138.82,138.81,3.02]
[1765356028940,0.04648565,138.82,138.8,3.07238943]
[1765356037056,6.52978565,138.82,138.8,3.07238943]
[1765356050769,0.04648565,138.82,138.8,3.07238943]
[1765356052264,0.04648565,138.82,138.8,9.55658943]
[1765356052478,0.04648565,138.82,138.81,3.13]
[1765356053568,0.04648565,138.82,138.81,9.6138]
[1765356054572,0.04648565,138.82,138.81,3.13]
[1765356056072,6.4819,138.86,138.82,3.13]
[1765356057177,0.04745812,138.85,138.84,3.13]
[1765356058475,0.04745812,138.85,138.83,3.18203852]
[1765356059082,8.2347003,138.85,138.83,3.18203852]
[1765356060678,6.4824,138.84,138.83,0.05203852]
[1765356061277,0.04745812,138.85,138.83,3.18203852]
[1765356080394,0.04745812,138.85,138.83,0.05203852]
[1765356082698,6.4824,138.84,138.83,0.05203852]
[1765356085002,6.4832,138.83,138.79,3.17]
[1765356085203,0.04745812,138.85,138.79,3.17]
[1765356085403,2.66259613,138.83,138.79,3.17]
[1765356085605,2.66259613,138.83,138.77,3.17]
[1765356085606,6.4839,138.81,138.77,3.17]
[1765356086106,0.04655424,138.8,138.78,0.0523998]
[1765356086798,0.04655424,138.8,138.78,3.2223998]
[1765356088203,6.53085424,138.8,138.78,3.2223998]
[1765356093212,9.19345037,138.8,138.78,0.0523998]
[1765356094013,9.19345037,138.8,138.78,3.2223998]
[1765356100512,6.4847,138.79,138.78,0.0523998]
[1765356100719,6.4847,138.79,138.78,3.2223998]
[1765356103625,0.04655424,138.8,138.78,3.2223998]
[1765356108524,2.66259613,138.86,138.79,3.12]
[1765356108829,107.50198232,138.91,138.79,3.12]
[1765356108830,103.46669613,138.89,138.79,3.12]
[1765356109416,103.46669613,138.89,138.82,0.04577927]
[1765356109724,0.05321106,138.85,138.83,3.12]
[1765356110628,6.53541106,138.85,138.83,3.12]
[1765356112530,6.4826,138.84,138.82,3.16577927]
[1765356115230,6.4826,138.84,138.82,0.04577927]
[1765356116825,2.66259613,138.83,138.82,0.04577927]
[1765356121829,2.66259613,138.83,138.73,13.42418006]
[1765356121830,6.4837,138.82,138.77,3.12]
[1765356122028,6.4837,138.82,138.75,3.12]
[1765356122029,2.66259613,138.8,138.75,3.12]
[1765356122943,0.04886413,138.79,138.76,0.0517003]
[1765356123235,6.4853,138.78,138.76,0.0517003]
[1765356126838,1.70637647,138.77,138.76,0.0517003]
[1765356131941,1.70637647,138.77,138.76,0.0017003]
[1765356137748,1.70637647,138.77,138.7,6.4887]
[1765356137749,6.4875,138.73,138.69,3.26]
[1765356137954,8.19387647,138.73,138.69,3.26]
[1765356138443,100.9085,138.75,138.69,3.26]
[1765356138653,1.7574005,138.73,138.71,3.31058477]
[1765356138848,1.7574005,138.73,138.71,3.30823622]
[1765356139440,8.2449005,138.73,138.71,3.30823622]
[1765356139955,6.53852403,138.73,138.71,3.30823622]
[1765356140245,0.05102403,138.73,138.71,3.30823622]
[1765356141149,6.53882403,138.73,138.71,3.30823622]
[1765356141353,8.2452005,138.73,138.71,3.30823622]
[1765356145049,6.53882403,138.73,138.71,3.30823622]
[1765356151560,6.488,138.72,138.71,3.30823622]
[1765356151858,0.05102403,138.73,138.71,3.30823622]
[1765356152052,6.53862403,138.73,138.71,3.30823622]
[1765356152460,0.05102403,138.73,138.71,3.30823622]
[1765356155563,6.53852403,138.73,138.71,3.30823622]
[1765356155761,6.53852403,138.73,138.71,0.04823622]
[1765356156251,8.2449005,138.73,138.71,0.04823622]
[1765356157551,6.488,138.72,138.71,3.30823622]
[1765356157756,1.70637647,138.78,138.71,3.30823622]
[1765356158466,6.4853,138.78,138.72,3.26]
[1765356158658,0.05511471,138.76,138.73,3.26]
[1765356158959,1.70637647,138.82,138.73,3.26]
[1765356159565,6.4846,138.8,138.75,3.26]
[1765356159761,0.05015875,138.79,138.77,3.26]
[1765356164067,0.05015875,138.79,138.76,3.27441425]
[1765356171369,6.53515875,138.79,138.76,3.27441425]
[1765356171573,0.05015875,138.79,138.76,3.27441425]
[1765356172472,6.4852,138.78,138.76,3.27441425]
[1765356172668,0.05015875,138.79,138.76,3.27441425]
[1765356173672,0.05015875,138.79,138.76,9.76041425]
[1765356173874,0.05015875,138.79,138.77,3.22]
[1765356174669,0.05015875,138.79,138.77,9.7055]
[1765356175069,0.05015875,138.79,138.78,3.22]
[1765356175476,1.70637647,138.83,138.78,3.22]
[1765356176474,6.51190264,138.82,138.8,3.22]
[1765356182272,6.4838,138.81,138.8,3.22]
[1765356185277,0.02850264,138.82,138.8,3.22]
[1765356188489,6.51190264,138.82,138.8,3.22]
[1765356190084,6.4838,138.81,138.79,0.04584777]
[1765356190389,2.69247943,138.82,138.79,0.04584777]
[1765356190986,6.4838,138.81,138.79,0.04584777]
[1765356191687,2.69247943,138.82,138.79,0.04584777]
[1765356191890,6.4842,138.8,138.79,0.04584777]
[1765356194105,6.4852,138.78,138.77,3.2]
[1765356197392,6.4852,138.78,138.76,3.29156506]
[1765356200504,0.0518152,138.79,138.76,3.29156506]
[1765356201288,0.0518152,138.79,138.78,3.24]
[1765356206503,0.0518152,138.79,138.76,6.53766506]
[1765356206807,0.0518152,138.79,138.77,3.24]
[1765356208206,6.5366152,138.79,138.77,3.24]
[1765356215608,6.5366152,138.79,138.76,0.05156506]
[1765356215609,6.4852,138.78,138.76,0.05156506]
[1765356216012,6.4852,138.78,138.76,3.29156506]
[1765356218614,6.4856,138.77,138.76,3.29156506]
[1765356218916,6.4856,138.77,138.76,0.05156506]
[1765356235736,6.4852,138.78,138.76,0.05156506]
[1765356238341,0.0518152,138.79,138.76,0.05156506]
[1765356239441,6.4856,138.77,138.76,0.05156506]
[1765356243539,21.62,138.77,138.69,15.39932958]
[1765356243730,2.66397679,138.76,138.69,15.39932958]
[1765356244537,6.5363205,138.74,138.71,0.05217394]
[1765356244834,0.0491205,138.74,138.71,0.05217394]
[1765356246440,0.0491205,138.74,138.71,6.54057394]
[1765356249240,0.0491205,138.74,138.71,15.45090352]
[1765356249437,6.4856,138.77,138.72,6.4878]
[1765356249743,6.4856,138.77,138.72,8.91032958]
[1765356250541,0.04874989,138.76,138.73,6.53549324]
[1765356259351,0.04874989,138.76,138.73,15.44582282]
[1765356267861,0.04874989,138.76,138.73,8.95832282]
[1765356268053,0.04874989,138.76,138.73,0.04799324]
[1765356281068,6.53484989,138.76,138.73,0.04799324]
[1765356281670,1.70574978,138.75,138.73,0.04799324]
[1765356282575,8.19234978,138.75,138.73,0.04799324]
[1765356282764,1.70574978,138.75,138.73,0.04799324]
[1765356284584,6.487,138.74,138.73,0.04799324]
[1765356292298,6.487,138.74,138.68,13.42418006]
[1765356292299,100.9279,138.72,138.68,8.91032958]
[1765356292503,102.65464978,138.69,138.63,8.91032958]
[1765356292796,1.70574978,138.64,138.62,8.91032958]
[1765356292991,8.19764978,138.64,138.6,8.91032958]
[1765356293187,0.04835678,138.63,138.61,0.04971439]
[1765356299689,6.54065678,138.63,138.61,0.04971439]
[1765356300095,0.04835678,138.63,138.61,0.04971439]
[1765356300901,0.04835678,138.63,138.61,1.75546417]
[1765356301804,0.04835678,138.63,138.61,8.24846417]
[1765356302897,23.32574978,138.73,138.61,3.19546417]
[1765356303099,23.32574978,138.73,138.66,1.70574978]
[1765356303299,6.4892,138.7,138.66,1.70574978]
[1765356303799,0.04710639,138.69,138.67,0.05346427]
[1765356307197,6.53670639,138.69,138.67,0.05346427]
[1765356326417,6.4898,138.68,138.67,0.05346427]
[1765356326615,0.04710639,138.69,138.62,6.4922]
[1765356326815,100.9425,138.7,138.62,6.4922]
[1765356327005,103.61097943,138.7,138.62,6.4922]
[1765356327205,108.71978315,138.7,138.62,6.4922]
[1765356327514,113.48550979,138.7,138.62,6.4922]
[1765356327716,6.54291318,138.67,138.65,0.04827938]
[1765356332016,6.4908,138.66,138.65,0.04827938]
[1765356336714,0.05241318,138.67,138.65,0.04827938]
[1765356340823,0.05241318,138.67,138.65,6.53947938]
[1765356341812,6.71338232,138.73,138.65,0.04827938]
[1765356341813,9.38186175,138.73,138.65,0.04827938]
[1765356342023,9.93919068,138.72,138.65,101.02047938]
[1765356342218,2.66847943,138.73,138.65,101.02047938]
[1765356342413,9.93831737,138.72,138.65,101.02047938]
[1765356342617,9.93831737,138.71,138.65,101.02047938]
[1765356342811,0.05133865,138.69,138.65,101.02047938]
[1765356344420,0.05133865,138.69,138.68,6.4898]
[1765356345426,6.4875,138.73,138.69,6.4893]
[1765356346329,0.02614387,138.72,138.7,0.05215911]
[1765356352422,6.51424387,138.72,138.7,0.05215911]
[1765356360242,0.02614387,138.72,138.7,0.05215911]
[1765356368848,0.02614387,138.72,138.65,6.4912]
[1765356369036,7.4561225,138.73,138.65,6.4912]
[1765356369649,2.66847943,138.7,138.63,6.4917]
[1765356369849,2.66847943,138.7,138.65,0.0547477]
[1765356369850,0.04633928,138.68,138.65,0.0547477]
[1765356370242,6.53653928,138.68,138.65,0.0547477]
[1765356372766,8.24496624,138.68,138.65,0.0547477]
[1765356374857,1.70842696,138.66,138.65,0.0547477]
[1765356375056,1.70842696,138.66,138.58,8.97862463]
[1765356375252,101.00393928,138.68,138.58,6.4941]
[1765356375253,1.70842696,138.64,138.58,6.4941]
[1765356375456,8.20022696,138.64,138.56,111.72825159]
[1765356376063,0.05534236,138.61,138.59,0.05163994]
[1765356376566,0.05534236,138.61,138.6,6.4936]
[1765356377152,8.19922696,138.66,138.62,6.4926]
[1765356377352,1.70842696,138.68,138.6,102.71882696]
[1765356377564,1.70842696,138.69,138.64,6.4917]
[1765356377756,1.70842696,138.7,138.64,6.4917]
[1765356378260,0.04757207,138.68,138.66,0.05040373]
[1765356378859,1.75599903,138.68,138.66,0.05040373]
[1765356379757,8.24599903,138.68,138.66,0.05040373]
[1765356380656,0.04757207,138.68,138.66,0.05040373]
[1765356383865,0.04757207,138.68,138.66,6.54110373]
[1765356389461,0.04757207,138.68,138.66,0.05040373]
[1765356391558,0.04757207,138.68,138.57,101.0308]
[1765356391559,1.75599903,138.68,138.61,15.47142463]
[1765356391764,1.70842696,138.65,138.59,8.97862463]
[1765356392160,1.70842696,138.65,138.58,8.97862463]
[1765356392561,0.04935914,138.63,138.6,6.54363518]
[1765356392766,0.04935914,138.63,138.6,0.05023518]
[1765356393473,0.04935914,138.63,138.61,6.493]
[1765356398375,1.70842696,138.67,138.63,6.492]
[1765356398875,1.70842696,138.68,138.64,6.4916]
[1765356399377,0.05442112,138.67,138.65,0.05218205]
[1765356402675,0.05442112,138.67,138.65,6.54328205]
[1765356404482,0.05442112,138.67,138.65,0.05218205]
[1765356405178,0.05442112,138.67,138.65,6.54338205]
[1765356410882,7.98492112,138.67,138.65,0.05218205]
[1765356411087,8.25334808,138.67,138.65,0.05218205]
[1765356412887,6.54492112,138.67,138.65,0.05218205]
[1765356418693,0.05442112,138.67,138.65,0.05218205]
[1765356430994,0.05442112,138.67,138.65,6.54338205]
[1765356437603,0.05442112,138.67,138.65,0.05218205]
[1765356439804,0.05442112,138.67,138.65,6.54338205]
[1765356440107,0.05442112,138.67,138.65,0.05218205]
[1765356443413,0.05442112,138.67,138.65,6.54338205]
[1765356450520,0.05442112,138.67,138.66,6.4908]
[1765356453622,0.05442112,138.67,138.65,0.05218205]
[1765356454523,0.05442112,138.67,138.65,6.54318205]
[1765356455625,0.05442112,138.67,138.66,6.4908]
[1765356461521,0.05442112,138.67,138.65,0.05218205]
[1765356466532,0.05442112,138.67,138.65,6.54328205]
[1765356468031,0.05442112,138.67,138.65,0.05218205]
[1765356469627,0.05442112,138.67,138.65,6.54328205]
[1765356473028,0.05442112,138.67,138.65,15.52190668]
[1765356477238,0.05442112,138.67,138.65,6.54328205]
[1765356483242,0.05442112,138.67,138.65,15.52190668]
[1765356484244,0.05442112,138.67,138.65,6.54328205]
[1765356484437,0.05442112,138.67,138.65,15.52190668]
[1765356484944,9.1577092,138.72,138.65,9.03080668]
[1765356485142,2.6693092,138.72,138.66,8.97862463]
[1765356485343,100.9131,138.74,138.66,8.97862463]
[1765356485836,107.58317757,138.76,138.67,8.97862463]
[1765356486042,0.02433179,138.73,138.7,0.04731645]
[1765356487338,0.02433179,138.73,138.71,6.4884]
[1765356488535,6.4861,138.77,138.72,6.4878]
[1765356488735,103.5326092,138.81,138.71,8.97862463]
[1765356488947,103.5326092,138.81,138.72,8.97862463]
[1765356489449,6.4849,138.79,138.75,0.05199587]
[1765356491048,100.8686,138.8,138.75,0.05199587]
[1765356491244,103.5534092,138.78,138.75,0.05199587]
[1765356491552,6.4858,138.77,138.75,0.05199587]
[1765356491738,100.8913,138.77,138.69,6.4893]
[1765356491938,2.6693092,138.75,138.69,6.4893]
[1765356492649,1.70733745,138.73,138.69,6.4893]
[1765356492949,0.05120997,138.72,138.7,0.04770722]
[1765356502153,0.05120997,138.72,138.7,6.53650722]
[1765356508467,1.70733745,138.79,138.7,102.69124467]
[1765356508767,1.70733745,138.79,138.7,111.62216208]
[1765356509163,6.4857,138.77,138.73,6.4873]
[1765356509357,8.19303745,138.77,138.74,0.05516364]
[1765356512871,6.4861,138.76,138.74,0.05516364]
[1765356517872,8.19393745,138.75,138.74,0.05516364]
[1765356519176,8.19343745,138.77,138.74,0.05516364]
[1765356520770,100.8907,138.77,138.68,8.97862463]
[1765356520977,1.70733745,138.75,138.67,8.97862463]
[1765356521179,1.70733745,138.75,138.66,109.94412463]
[1765356521577,6.4875,138.74,138.7,6.4889]
[1765356521777,0.05497714,138.73,138.71,0.04995871]
[1765356522180,1.76231459,138.73,138.71,0.04995871]
[1765356522375,62.14231459,138.73,138.71,0.04995871]
[1765356522574,62.14231459,138.73,138.64,8.97862463]
[1765356522575,184.69131459,138.73,138.63,8.97862463]
[1765356522775,1.70733745,138.69,138.63,8.97862463]
[1765356522973,1.70733745,138.69,138.62,8.97862463]
[1765356523483,8.19673745,138.69,138.65,6.4911]
[1765356523682,0.05167216,138.68,138.66,0.04756183]
[1765356540493,0.05167216,138.68,138.66,6.53826183]
[1765356548808,0.05167216,138.68,138.66,0.04756183]
[1765356549297,6.54157216,138.68,138.66,0.04756183]
[1765356550003,0.05167216,138.68,138.66,0.04756183]
[1765356551908,6.54157216,138.68,138.66,0.04756183]
[1765356552111,1.70733745,138.67,138.66,0.04756183]
[1765356553515,0.05167216,138.68,138.66,0.04756183]
[1765356556512,6.54157216,138.68,138.66,0.04756183]
[1765356560719,0.05167216,138.68,138.66,0.04756183]
[1765356561722,6.54167216,138.68,138.66,0.04756183]
[1765356566124,6.4903,138.67,138.66,0.04756183]
[1765356578345,100.9985,138.62,138.58,8.97862463]
[1765356578635,2.66881419,138.59,138.55,8.97862463]
[1765356578835,2.66881419,138.59,138.53,8.97862463]
[1765356579226,0.0521029,138.57,138.55,0.05467674]
[1765356580436,60.6521029,138.57,138.55,0.05467674]
[1765356581337,67.1473029,138.57,138.55,0.05467674]
[1765356582726,2.66881419,138.56,138.55,0.05467674]
[1765356587246,63.28881419,138.56,138.55,0.05467674]
[1765356591249,84.91881419,138.56,138.55,0.05467674]
[1765356593755,6.4966,138.54,138.48,6.4989]
[1765356593954,60.66,138.53,138.48,6.4989]
[1765356594853,0.05526673,138.52,138.49,0.04953902]
[1765356600053,0.05526673,138.52,138.49,6.54813902]
[1765356601160,0.05526673,138.52,138.5,6.4983]
[1765356606064,0.05526673,138.52,138.49,6.54823902]
[1765356606260,0.05526673,138.52,138.49,0.04953902]
[1765356606958,6.4978,138.51,138.49,0.04953902]
[1765356607462,0.05526673,138.52,138.49,0.04953902]
[1765356607963,0.05526673,138.52,138.5,6.4982]
[1765356609257,0.05526673,138.52,138.51,6.4978]
[1765356617261,0.05526673,138.52,138.49,6.54793902]
[1765356618069,0.05526673,138.52,138.49,0.04953902]
[1765356619575,0.05526673,138.52,138.49,6.54803902]
[1765356621582,0.05526673,138.52,138.49,0.04953902]
[1765356623577,6.55266673,138.52,138.49,0.04953902]
[1765356626479,0.05526673,138.52,138.49,0.04953902]
[1765356626980,0.05526673,138.52,138.51,6.4978]
[1765356632684,0.05526673,138.52,138.5,8.97862463]
[1765356632883,0.05526673,138.52,138.49,15.52646365]
[1765356634894,0.05526673,138.52,138.5,6.4982]
[1765356636291,0.05526673,138.52,138.49,9.02816365]
[1765356639085,0.05526673,138.52,138.49,15.52686365]
[1765356639686,0.05526673,138.52,138.49,6.54823902]
[1765356640801,0.05526673,138.52,138.49,0.04953902]
[1765356644397,0.05526673,138.52,138.5,6.4982]
[1765356645305,0.05526673,138.52,138.49,6.54823902]
[1765356645501,1.76679644,138.52,138.49,6.54823902]
[1765356649008,0.05526673,138.52,138.49,6.54823902]
[1765356652002,0.05526673,138.52,138.5,6.4981]
[1765356652215,0.05526673,138.52,138.49,9.02816365]
[1765356652415,0.05526673,138.52,138.5,8.97862463]
[1765356652704,0.05526673,138.52,138.49,9.02816365]
[1765356654508,0.05526673,138.52,138.5,6.4982]
[1765356658611,0.05526673,138.52,138.5,15.47682463]
[1765356659512,0.05526673,138.52,138.51,6.4978]
[1765356660507,6.4978,138.51,138.49,9.02816365]
[1765356660713,0.05526673,138.52,138.49,0.04953902]
[1765356663515,6.55286673,138.52,138.49,0.04953902]
[1765356663809,1.71152971,138.51,138.49,0.04953902]
[1765356664017,21.63,138.5,138.43,8.97862463]
[1765356664202,21.63,138.52,138.44,101.1273]
[1765356664408,62.51152971,138.53,138.45,8.97862463]
[1765356664609,62.51152971,138.53,138.46,8.97862463]
[1765356665013,0.0497678,138.51,138.48,0.045739]
[1765356665716,0.0497678,138.51,138.48,9.02436363]
[1765356666520,0.0497678,138.51,138.49,6.4987]
[1765356669422,0.0497678,138.51,138.48,9.02436363]
[1765356670511,0.0497678,138.51,138.48,15.52356363]
[1765356670712,0.0497678,138.51,138.48,9.02436363]
[1765356671421,0.0497678,138.51,138.48,0.045739]
[1765356672920,0.0497678,138.51,138.48,6.544939]
[1765356677629,0.0497678,138.51,138.48,0.045739]
[1765356678512,6.5476678,138.51,138.48,0.045739]
[1765356682830,6.4983,138.5,138.48,0.045739]
[1765356683127,0.0497678,138.51,138.48,0.045739]
[1765356684526,6.4987,138.49,138.48,0.045739]
[1765356687636,60.8897678,138.51,138.48,0.045739]
[1765356688121,0.0497678,138.51,138.48,0.045739]
[1765356689447,6.4983,138.5,138.48,0.045739]
[1765356693144,6.4987,138.49,138.48,0.045739]
[1765356703446,6.4987,138.5,138.48,0.045739]
[1765356704350,0.0497678,138.51,138.48,0.045739]
[1765356705447,6.4983,138.5,138.48,0.045739]
[1765356706644,6.4987,138.49,138.48,0.045739]
[1765356720855,6.4983,138.5,138.48,0.045739]
[1765356721059,0.0497678,138.51,138.48,0.045739]
[1765356722452,6.5475678,138.51,138.48,0.045739]
[1765356734662,8.26023483,138.51,138.48,0.045739]
[1765356737166,8.26023483,138.51,138.48,6.544839]
[1765356740370,8.26023483,138.51,138.48,0.045739]
[1765356743667,6.5475678,138.51,138.48,6.544839]
[1765356744174,6.5475678,138.51,138.48,0.045739]
[1765356745075,6.4983,138.5,138.48,0.045739]
[1765356749781,0.0497678,138.51,138.48,0.045739]
[1765356749986,6.5475678,138.51,138.48,0.045739]
[1765356761501,1.71266703,138.5,138.48,0.045739]
[1765356762594,6.4987,138.49,138.48,0.045739]
[1765356767293,8.21096703,138.5,138.48,0.045739]
[1765356768306,1.71266703,138.49,138.48,0.045739]
[1765356768495,163.74706703,138.49,138.43,8.97862463]
[1765356768696,163.74706703,138.49,138.42,13.42418006]
[1765356768697,1.71266703,138.45,138.42,8.97862463]
[1765356769403,1.71266703,138.45,138.41,8.97862463]
[1765356769596,62.70422832,138.45,138.42,0.05239643]
[1765356769791,6.5015,138.44,138.42,0.05239643]
[1765356769995,62.70422832,138.45,138.42,0.05239643]
[1765356770395,69.20492832,138.45,138.42,0.05239643]
[1765356770597,62.70422832,138.45,138.42,0.05239643]
[1765356771696,1.71266703,138.43,138.42,0.05239643]
[1765356775808,1.71266703,138.44,138.42,0.05239643]
[1765356781807,60.99156129,138.45,138.42,0.05239643]
[1765356782517,60.99156129,138.45,138.42,6.55419643]
[1765356793617,1.71266703,138.44,138.42,6.55419643]
[1765356795920,62.70422832,138.45,138.42,6.55419643]
[1765356796716,60.99156129,138.45,138.42,6.55419643]
[1765356804224,67.49216129,138.45,138.42,0.05239643]
[1765356804722,6.5012,138.44,138.42,0.05239643]
[1765356805419,67.49216129,138.45,138.42,0.05239643]
[1765356806927,60.99156129,138.45,138.42,6.55429643]
[1765356810023,60.99156129,138.45,138.42,0.05239643]
[1765356810624,60.99156129,138.45,138.44,6.5011]
[1765356810832,0.05156129,138.45,138.44,6.5011]
[1765356814532,4.76791658,138.49,138.45,6.5003]
[1765356814733,70.17695443,138.5,138.45,6.5003]
[1765356814935,4.76734832,138.49,138.45,6.5003]
[1765356815127,70.17695443,138.5,138.45,6.5003]
[1765356815329,4.76665639,138.49,138.45,6.5003]
[1765356815532,0.04974989,138.48,138.46,0.04916557]
[1765356815729,0.04974989,138.48,138.46,6.54926557]
[1765356820843,0.04974989,138.48,138.46,0.04916557]
[1765356822542,6.4997,138.47,138.46,0.04916557]
[1765356843461,9.17795443,138.47,138.46,0.04916557]
[1765356844055,6.5022,138.42,138.39,8.97992677]
[1765356844262,61.02,138.41,138.37,8.97992677]
[1765356844460,61.02,138.41,138.35,114.65919015]
[1765356844461,61.02,138.42,138.38,8.97992677]
[1765356844662,61.02,138.44,138.39,8.97992677]
[1765356844971,61.02,138.44,138.42,6.502]
[1765356845156,61.02,138.44,138.42,0.05407436]
[1765356845157,0.04637012,138.44,138.42,0.05407436]
[1765356848469,6.54757012,138.44,138.42,0.05407436]
[1765356855170,61.02,138.43,138.42,0.05407436]
[1765356861482,67.5216,138.43,138.42,0.05407436]
[1765356864779,61.02,138.43,138.42,0.05407436]
[1765356866078,69.23587639,138.43,138.42,0.05407436]
[1765356866872,62.73427639,138.43,138.42,0.05407436]
[1765356867274,61.02,138.43,138.42,0.05407436]
[1765356870585,61.02,138.43,138.42,6.55607436]
[1765356873683,0.04637012,138.44,138.42,0.05407436]
[1765356874491,6.54747012,138.44,138.42,0.05407436]
[1765356877489,0.04637012,138.44,138.42,0.05407436]
[1765356879485,1.76064651,138.44,138.42,0.05407436]
[1765356884679,8.26174651,138.44,138.42,0.05407436]
[1765356895699,6.5016,138.43,138.42,0.05407436]
[1765356902697,101.1028,138.48,138.42,0.05407436]